bitfinex/quotes_ETHUSD_20250217
["timestamp","ask_amount","ask_price","bid_price","bid_amount"]
[1739790789923,3.63319,2752.4,2751.9,0.52295018]
[1739790790092,3.63315,2752.5,2752.0,3.6337]
[1739790790291,7.26633,2752.5,2752.1,0.7671]
[1739790790621,3.63319,2752.4,2752.1,0.84023237]
[1739790791321,3.63334,2752.3,2752.1,0.84023237]
[1739790791479,3.64095,2752.2,2752.1,0.07313237]
[1739790791819,3.64112,2752.1,2751.7,0.804]
[1739790792222,3.63356,2752.2,2751.7,0.804]
[1739790792523,3.6336,2752.1,2751.7,0.804]
[1739790793026,3.63385,2751.9,2751.7,0.804]
[1739790793796,7.26736,2752.1,2751.7,0.804]
[1739790794007,3.63373,2752.0,2751.7,0.804]
[1739790794719,3.63363,2752.1,2751.7,0.804]
[1739790794919,3.63363,2752.1,2751.7,1.247837]
[1739790795110,3.63375,2752.0,2751.7,1.247837]
[1739790795307,3.63375,2752.0,2751.7,0.804]
[1739790795631,0.0075,2752.3,2751.7,0.804]
[1739790795839,3.63345,2752.2,2751.7,0.804]
[1739790796139,3.63361,2752.1,2751.7,0.804]
[1739790796643,3.6338,2752.0,2751.7,0.804]
[1739790797614,3.63387,2751.9,2751.7,0.804]
[1739790799262,3.63368,2752.1,2751.7,0.804]
[1739790799263,3.64122,2752.0,2751.7,0.804]
[1739790799419,3.63396,2751.9,2751.7,0.804]
[1739790799612,3.63415,2751.7,2751.3,0.7818]
[1739790799941,3.63415,2751.7,2751.3,2.2273379]
[1739790800135,3.63429,2751.6,2751.3,0.7818]
[1739790800449,3.63438,2751.5,2751.3,0.7818]
[1739790800671,3.63438,2751.5,2751.4,0.07282277]
[1739790801373,3.63421,2751.7,2751.4,0.07282277]
[1739790801915,3.63428,2751.6,2751.4,0.07282277]
[1739790804055,3.63405,2751.8,2751.4,0.07282277]
[1739790804361,0.0075,2751.7,2751.4,0.07282277]
[1739790804563,3.63433,2751.6,2751.4,0.07282277]
[1739790805857,3.64168,2751.7,2751.4,0.07282277]
[1739790806037,0.0075,2751.7,2751.4,0.07282277]
[1739790806245,3.63427,2751.6,2751.4,0.07282277]
[1739790806657,3.63438,2751.5,2751.4,0.07282277]
[1739790807165,3.63452,2751.4,2751.1,0.7824]
[1739790807527,3.63466,2751.3,2750.7,0.7827]
[1739790807726,0.6038,2751.6,2750.7,0.7827]
[1739790807727,0.0075,2751.5,2750.7,0.7827]
[1739790808035,3.6355,2750.7,2750.2,3.63603]
[1739790808216,3.63557,2750.6,2750.0,4.41895]
[1739790808420,0.0075,2750.8,2749.6,4.568971]
[1739790808763,0.6038,2750.4,2749.7,0.4568971]
[1739790808961,4.23971,2750.4,2749.7,0.4568971]
[1739790809119,3.63599,2750.3,2749.8,3.63661]
[1739790809917,3.63591,2750.4,2749.8,3.63654]
[1739790810119,0.0075,2750.4,2749.6,0.149511]
[1739790810318,3.63644,2750.0,2749.6,0.149511]
[1739790810523,3.63661,2749.9,2749.6,0.149511]
[1739790811163,3.63673,2749.8,2749.6,0.149511]
[1739790813170,3.64426,2749.7,2749.6,0.149511]
[1739790813518,3.63673,2749.8,2749.6,0.149511]
[1739790814156,0.0075,2749.9,2749.6,0.149511]
[1739790814364,3.63666,2749.8,2749.6,0.149511]
[1739790814581,0.0075,2749.9,2749.6,0.149511]
[1739790815081,7.27345,2749.8,2749.6,0.149511]
[1739790815373,3.63672,2749.8,2749.6,0.149511]
[1739790815665,3.64422,2749.8,2749.7,0.06748747]
[1739790816167,7.040089,2750.3,2749.7,0.06748747]
[1739790816168,3.63605,2750.3,2749.7,0.06748747]
[1739790816374,3.63605,2750.3,2749.6,0.149511]
[1739790816375,0.0075,2750.0,2749.6,0.149511]
[1739790816881,0.0075,2750.0,2749.7,0.06881545]
[1739790817044,3.63572,2750.5,2749.9,0.8038]
[1739790817240,3.63564,2750.6,2749.9,0.8038]
[1739790817458,3.63585,2750.4,2750.0,0.06880842]
[1739790817859,3.636,2750.3,2750.0,0.06880842]
[1739790818367,3.63617,2750.2,2750.0,0.06880842]
[1739790818529,3.63623,2750.1,2750.0,0.06880842]
[1739790818723,0.0075,2750.1,2750.0,0.06880842]
[1739790818918,3.63625,2750.1,2749.6,4.599211]
[1739790819153,4.25505,2750.1,2750.0,8.42e-06]
[1739790819320,4.24806,2749.7,2749.6,0.149511]
[1739790819544,13.35606,2749.7,2749.6,0.149511]
[1739790819726,16.35606,2749.7,2749.6,0.149511]
[1739790820576,13.35606,2749.7,2749.6,0.149511]
[1739790820738,3.64426,2749.7,2749.6,0.149511]
[1739790821054,3.64426,2749.7,2748.2,4.45155]
[1739790821055,4.24138,2749.1,2748.2,4.45155]
[1739790821283,4.24138,2749.1,2748.2,4.45154]
[1739790821582,2.0,2749.9,2748.2,4.45154]
[1739790821583,0.6038,2749.4,2748.3,3.7741]
[1739790821725,3.63651,2749.9,2749.1,0.7741]
[1739790821924,3.63665,2749.8,2749.1,0.7741]
[1739790822126,3.64426,2749.7,2749.1,0.7741]
[1739790822331,0.0075,2749.7,2749.1,0.7741]
[1739790822560,3.64435,2749.7,2749.1,0.7741]
[1739790823633,0.0075,2749.6,2749.1,0.7741]
[1739790823974,0.0075,2749.2,2748.8,0.7777]
[1739790824346,0.0075,2749.2,2748.5,3.7777]
[1739790824548,0.0075,2749.0,2748.5,3.7777]
[1739790824752,0.0075,2749.0,2748.5,7.41604]
[1739790824929,0.0075,2749.0,2748.5,5.59326139]
[1739790825136,0.0075,2749.0,2748.6,3.63808]
[1739790825452,0.0075,2749.1,2748.7,3.63798]
[1739790825657,0.0075,2749.1,2748.6,3.63808]
[1739790825658,0.6038,2749.5,2748.5,0.7777]
[1739790825869,0.0075,2749.4,2749.0,3.63767]
[1739790826072,4.24059,2749.7,2749.1,0.8271]
[1739790826240,0.0075,2749.6,2749.1,4.46464]
[1739790826438,0.6038,2750.3,2749.3,0.8054]
[1739790826640,13.508,2751.0,2749.9,4.44181]
[1739790826641,0.6038,2750.6,2749.9,4.44181]
[1739790826951,8.89305328,2751.0,2748.9,3.404039]
[1739790826952,0.0075,2749.8,2748.9,3.404039]
[1739790827131,0.0075,2749.6,2749.2,0.8316]
[1739790827664,3.64427,2749.7,2749.3,0.05684642]
[1739790827867,3.63703,2749.5,2749.3,0.05684642]
[1739790828182,3.63703,2749.5,2749.0,0.7795]
[1739790828392,0.0075,2749.5,2749.3,3.6372]
[1739790828536,0.0075,2749.5,2748.6,3.404039]
[1739790828537,13.399839,2749.4,2748.2,3.63871]
[1739790828737,0.0075,2749.0,2747.7,0.8088]
[1739790828991,0.0075,2748.5,2747.8,3.63918]
[1739790829479,3.63863,2748.3,2747.7,4.44818]
[1739790829701,0.0075,2748.2,2747.7,4.44818]
[1739790829884,0.0075,2748.2,2747.7,0.8088]
[1739790830258,0.0075,2748.3,2747.7,4.44814]
[1739790830458,0.0075,2748.3,2747.8,0.04629839]
[1739790830771,0.0075,2748.3,2747.9,3.63914]
[1739790830958,4.242,2748.7,2748.1,3.63883]
[1739790831361,0.0075,2748.6,2748.2,0.04629839]
[1739790832310,0.6038,2749.0,2748.3,3.63861]
[1739790832515,4.2413,2749.2,2748.5,3.63831]
[1739790832660,0.6038,2749.2,2748.7,3.63806]
[1739790832860,3.92118,2749.4,2748.7,3.63806]
[1739790832861,4.24078,2749.6,2749.0,3.63766]
[1739790833096,0.6038,2749.6,2748.8,3.63788]
[1739790833295,4.24071,2749.6,2749.1,0.04629839]
[1739790833500,4.24071,2749.6,2749.0,3.63768]
[1739790833501,0.0075,2749.5,2749.0,3.63768]
[1739790833695,3.64462,2749.5,2749.2,0.04629839]
[1739790833896,3.64462,2749.5,2748.8,3.63788]
[1739790834112,3.64462,2749.5,2749.3,0.04629839]
[1739790834277,3.64462,2749.5,2748.8,3.63788]
[1739790834477,0.6038,2749.5,2748.8,0.7661]
[1739790834678,0.6038,2749.5,2748.9,3.68401839]
[1739790834868,0.0075,2749.4,2748.9,3.68401839]
[1739790835966,3.64467,2749.4,2748.9,0.04629839]
[1739790836382,0.0075,2749.3,2748.9,0.04629839]
[1739790836616,0.0075,2749.3,2748.7,3.63808]
[1739790836907,0.6038,2749.5,2748.8,0.04634752]
[1739790837069,0.79039148,2749.8,2749.2,3.6374]
[1739790837270,0.0075,2749.7,2749.2,3.6374]
[1739790837502,0.0075,2749.7,2749.3,0.04628435]
[1739790837680,3.64429,2749.7,2749.3,0.04628435]
[1739790837883,0.0075,2749.7,2749.2,3.6374]
[1739790838083,0.0075,2749.7,2749.4,0.04628435]
[1739790838300,0.0075,2749.7,2748.7,3.63808]
[1739790838522,0.0075,2749.2,2748.6,4.46148]
[1739790839600,0.0075,2749.2,2748.7,3.63807]
[1739790839765,0.0075,2749.2,2748.6,4.46148]
[1739790839970,3.63724,2749.4,2748.8,3.63781]
[1739790840472,0.0075,2749.2,2748.9,3.63779]
[1739790840673,0.0075,2749.2,2748.8,3.63781]
[1739790841178,0.0075,2749.2,2748.6,4.46156]
[1739790841674,3.63762,2749.1,2748.6,4.46153]
[1739790842075,0.0075,2748.7,2748.3,0.8263]
[1739790842417,0.0075,2748.7,2748.2,3.63865]
[1739790842418,0.0075,2748.7,2748.2,3.63867]
[1739790842771,4.24138,2749.1,2748.6,3.63817]
[1739790842975,3.63738,2749.3,2748.7,3.63799]
[1739790843297,3.63738,2749.3,2748.7,4.40523]
[1739790843298,3.63729,2749.3,2748.7,4.40523]
[1739790843692,0.0075,2749.2,2748.7,4.40523]
[1739790844091,0.0075,2749.2,2748.7,4.4052]
[1739790844314,0.0075,2749.2,2748.7,4.40527]
[1739790844621,3.64493,2749.2,2748.7,4.40521]
[1739790844804,0.0075,2749.2,2748.7,8.0432]
[1739790845005,0.0075,2749.2,2748.8,3.63792]
[1739790845322,0.0075,2749.2,2748.7,4.40519]
[1739790845531,3.64498,2749.2,2748.9,0.04324044]
[1739790845707,3.64498,2749.2,2748.7,4.40519]
[1739790845895,0.0075,2749.2,2749.0,0.04324044]
[1739790846225,3.64492,2749.2,2748.7,0.7672]
[1739790846423,3.64492,2749.2,2748.8,0.04315628]
[1739790846719,3.64492,2749.2,2748.7,0.7672]
[1739790846880,3.64492,2749.2,2748.9,0.04315628]
[1739790847081,3.64492,2749.2,2748.7,4.40528]
[1739790847282,3.64492,2749.2,2749.0,0.04315628]
[1739790847527,3.64492,2749.2,2748.7,4.40528]
[1739790847684,3.64492,2749.2,2749.1,0.04315628]
[1739790847885,3.64492,2749.2,2748.7,4.40528]
[1739790848103,3.64492,2749.2,2749.1,0.04315628]
[1739790848344,3.63766,2749.1,2748.7,0.7672]
[1739790848659,0.0075,2749.2,2748.5,0.8308]
[1739790848841,0.0075,2749.3,2748.5,0.8308]
[1739790849159,3.63763,2749.1,2748.5,4.46907]
[1739790849366,3.63742,2749.2,2748.5,4.46907]
[1739790849722,4.24104,2749.4,2748.5,0.8308]
[1739790850059,3.63755,2749.1,2748.7,3.63799]
[1739790850239,3.64523,2749.0,2748.5,4.46905]
[1739790850442,0.0075,2749.0,2748.5,0.8308]
[1739790850761,4.24169,2748.9,2748.3,4.47173]
[1739790851055,3.638,2748.8,2748.3,4.47173]
[1739790851255,3.638,2748.8,2748.4,3.63846]
[1739790851418,0.6038,2748.9,2748.4,3.63846]
[1739790851755,4.24161,2748.9,2748.4,3.63846]
[1739790852088,7.87955,2748.9,2748.3,4.47173]
[1739790852239,7.87953,2748.9,2748.3,8.11026]
[1739790852442,3.63804,2748.8,2748.3,4.47173]
[1739790852627,4.24161,2748.9,2748.3,8.11023]
[1739790852829,4.24161,2748.9,2748.4,3.63839]
[1739790853765,3.63809,2748.7,2748.3,0.8332]
[1739790854610,3.64545,2748.8,2748.3,0.8332]
[1739790854911,0.0075,2748.8,2748.6,3.63821]
[1739790855212,3.63763,2749.1,2748.3,0.8332]
[1739790855213,0.0075,2748.9,2748.5,3.6383]
[1739790855961,0.0075,2748.9,2748.6,3.63821]
[1739790856318,4.24129,2749.2,2748.7,3.638]
[1739790856516,4.24129,2749.2,2748.8,3.63783]
[1739790856517,0.0075,2749.1,2748.8,3.63783]
[1739790856855,4.24106,2749.4,2748.8,4.43623]
[1739790857028,0.0075,2749.2,2748.6,3.6382]
[1739790857224,3.63758,2749.1,2748.6,3.6382]
[1739790857440,0.0075,2749.2,2748.6,3.6382]
[1739790857763,3.64494,2749.2,2748.7,3.63801]
[1739790858114,3.63766,2749.1,2748.6,3.6382]
[1739790858560,3.64494,2749.2,2748.6,3.63808]
[1739790858717,3.64494,2749.2,2748.7,3.63796]
[1739790858918,3.64494,2749.2,2748.6,3.63808]
[1739790859260,0.0075,2749.3,2748.6,3.63808]
[1739790859446,3.63742,2749.2,2748.6,3.63808]
[1739790859611,7.27497,2749.2,2748.6,3.63808]
[1739790859817,3.63742,2749.2,2748.6,7.27621]
[1739790860018,3.63742,2749.2,2748.7,3.63807]
[1739790860420,3.63742,2749.2,2748.8,0.04350695]
[1739790860964,7.27495,2749.2,2748.7,3.63807]
[1739790861132,3.63766,2749.1,2748.9,0.04350695]
[1739790861463,3.63766,2749.1,2748.6,3.63821]
[1739790861464,3.63766,2749.1,2749.0,0.04350695]
[1739790861821,3.63766,2749.1,2748.6,3.63821]
[1739790862020,3.63766,2749.1,2748.7,0.04350695]
[1739790862964,0.0075,2749.3,2748.8,3.63792]
[1739790863137,0.0075,2749.3,2748.9,3.63773]
[1739790863539,3.64482,2749.3,2749.0,0.04350695]
[1739790863939,3.64482,2749.3,2748.8,3.63795]
[1739790864154,3.64482,2749.3,2749.1,0.04350695]
[1739790864468,3.64482,2749.3,2749.2,0.04350695]
[1739790864823,3.64482,2749.3,2748.8,7.27581]
[1739790865146,0.0075,2749.3,2748.9,3.68129695]
[1739790865353,3.64482,2749.3,2748.9,3.68129695]
[1739790865726,0.0075,2749.3,2748.9,3.68129695]
[1739790866322,3.64482,2749.3,2748.9,3.68129695]
[1739790867204,3.63748,2749.2,2748.9,0.04350695]
[1739790867406,3.63748,2749.2,2748.7,3.638]
[1739790867611,3.64482,2749.3,2748.8,3.63789]
[1739790867816,0.0075,2749.3,2748.9,3.63779]
[1739790868297,0.0075,2749.3,2749.0,0.04330356]
[1739790868667,3.64481,2749.3,2749.0,0.04330356]
[1739790869217,3.64482,2749.3,2749.0,0.04330356]
[1739790869712,0.0075,2749.3,2749.0,3.68097356]
[1739790870011,0.0075,2749.3,2749.0,0.04330356]
[1739790870313,3.63732,2749.3,2749.0,0.04330356]
[1739790871119,3.63732,2749.3,2748.8,3.63793]
[1739790871615,3.63732,2749.3,2748.9,0.04330356]
[1739790872335,0.0075,2749.2,2748.9,0.04330356]
[1739790872829,0.0075,2749.2,2748.9,3.6378]
[1739790873042,0.0075,2749.3,2749.0,0.04330356]
[1739790873603,4.24068,2749.7,2749.2,3.63741]
[1739790873841,0.0075,2749.6,2749.2,3.63741]
[1739790874046,0.0075,2749.6,2749.3,0.04330356]
[1739790874417,0.0075,2749.4,2749.1,0.7875]
[1739790874688,0.0075,2749.4,2749.2,0.04330356]
[1739790875432,3.64473,2749.4,2749.2,0.04330356]
[1739790875614,3.63728,2749.3,2748.9,3.63778]
[1739790876652,0.0075,2749.4,2748.9,3.63778]
[1739790876808,3.64466,2749.4,2748.9,3.63778]
[1739790877009,3.63729,2749.3,2748.9,3.63778]
[1739790877209,0.0075,2749.4,2748.9,3.63778]
[1739790877210,3.64465,2749.4,2748.9,3.63778]
[1739790877758,0.0075,2749.6,2748.8,0.7562]
[1739790878055,0.0075,2749.3,2748.8,4.39406]
[1739790878426,0.0075,2749.3,2748.9,3.63771]
[1739790878622,3.63756,2749.1,2748.8,0.7562]
[1739790879221,3.64505,2749.1,2748.6,0.7937]
[1739790879528,3.64505,2749.1,2748.6,4.43188]
[1739790880416,0.0075,2749.1,2748.6,4.43182]
[1739790880617,3.6377,2749.0,2748.6,4.875092]
[1739790881019,3.6377,2749.0,2748.6,1.236882]
[1739790881415,3.64506,2749.1,2748.6,4.875062]
[1739790881742,3.64506,2749.1,2748.6,8.06998]
[1739790881940,0.0075,2749.1,2748.7,3.63807]
[1739790883414,0.0075,2749.2,2748.6,4.43183]
[1739790884016,0.0075,2749.2,2748.8,3.63794]
[1739790885170,0.0075,2749.2,2748.6,4.43179]
[1739790885467,0.0075,2749.2,2748.8,3.6379]
[1739790885821,3.64471,2749.4,2748.9,3.63775]
[1739790886272,3.6373,2749.3,2748.8,7.27578]
[1739790886477,0.0075,2749.4,2748.9,3.63772]
[1739790886893,3.64476,2749.4,2748.9,3.63772]
[1739790887091,7.27465,2749.3,2748.8,3.63791]
[1739790887298,3.63729,2749.3,2748.8,3.63791]
[1739790887466,0.0075,2749.3,2748.9,3.63778]
[1739790888005,3.64479,2749.3,2748.9,3.63778]
[1739790888898,0.0075,2749.4,2748.9,3.63778]
[1739790889057,3.6447,2749.4,2748.9,3.63778]
[1739790889257,3.63729,2749.3,2748.9,3.63778]
[1739790890799,3.64466,2749.4,2749.0,0.04157764]
[1739790891166,0.0075,2749.4,2749.0,0.04157764]
[1739790891353,0.6038,2749.6,2749.1,3.63746]
[1739790891797,0.0075,2749.5,2749.1,3.63746]
[1739790891979,0.0075,2749.5,2749.2,0.04157764]
[1739790892204,3.64453,2749.5,2749.2,0.04157764]
[1739790892499,3.63725,2749.4,2749.0,0.7624]
[1739790892679,3.63725,2749.4,2749.3,0.04157764]
[1739790892884,3.63725,2749.4,2749.0,0.7624]
[1739790893083,3.63725,2749.4,2749.3,0.04157764]
[1739790893287,3.64455,2749.5,2748.7,0.443179]
[1739790893491,3.64455,2749.5,2749.0,3.63767]
[1739790893810,0.0075,2749.5,2749.1,3.63749]
[1739790893971,3.64452,2749.5,2749.1,3.63749]
[1739790894311,7.28167,2749.5,2749.2,0.04009272]
[1739790894509,3.64452,2749.5,2749.2,0.04009272]
[1739790894666,3.64452,2749.5,2749.0,7.27523]
[1739790894865,3.64452,2749.5,2749.3,0.04009272]
[1739790895108,3.64452,2749.5,2749.0,3.63756]
[1739790895312,3.64452,2749.5,2749.4,0.04009272]
[1739790895478,3.64452,2749.5,2749.0,3.63756]
[1739790895680,3.64452,2749.5,2749.4,0.04009272]
[1739790895917,3.63669,2749.8,2749.3,3.63716]
[1739790896074,3.63665,2749.8,2749.3,3.63716]
[1739790896274,3.63665,2749.8,2749.4,0.04009272]
[1739790897814,0.7768,2749.9,2749.4,0.04009272]
[1739790898019,0.0075,2749.8,2749.4,0.04009272]
[1739790898573,3.64415,2749.8,2749.4,0.04009272]
[1739790898885,0.7768,2749.9,2749.4,0.04009272]
[1739790899103,3.63669,2749.8,2749.4,0.04009272]
[1739790899272,3.63669,2749.8,2749.4,3.67723272]
[1739790899472,0.364,2750.0,2749.4,3.67717272]
[1739790899684,0.364,2750.0,2749.4,3.67718272]
[1739790900021,3.63682,2749.7,2749.4,0.04009272]
[1739790900390,0.3715,2750.0,2749.4,3.63714]
[1739790900391,0.0075,2749.9,2749.4,3.63714]
[1739790900712,3.63661,2749.9,2749.5,0.03843111]
[1739790900921,3.63689,2749.6,2749.5,0.03843111]
[1739790901215,3.63689,2749.6,2749.2,4.46238]
[1739790901400,3.63676,2749.7,2749.5,0.03843111]
[1739790901601,3.63676,2749.7,2749.2,4.46237]
[1739790901913,3.63676,2749.7,2749.3,3.63727]
[1739790902115,0.0075,2749.8,2749.3,3.67570111]
[1739790902317,3.64416,2749.8,2749.3,3.67570111]
[1739790902625,0.0075,2749.8,2749.4,3.63715]
[1739790902917,0.364,2750.0,2749.6,0.8277]
[1739790903325,0.364,2750.0,2749.7,0.03843111]
[1739790903523,3.6365,2749.9,2749.7,0.03843111]
[1739790903743,3.63662,2749.8,2749.7,0.03843111]
[1739790904026,3.63662,2749.8,2749.4,0.7889]
[1739790904369,3.63662,2749.8,2749.5,0.03831902]
[1739790904807,3.63689,2749.6,2749.5,0.03831902]
[1739790905020,3.6367,2749.8,2749.5,0.03831902]
[1739790905323,0.8263,2749.7,2749.1,0.7863]
[1739790905489,4.46314,2749.7,2749.6,0.03824897]
[1739790905818,4.46314,2749.7,2749.3,3.63726]
[1739790906004,4.46314,2749.7,2749.6,0.03824897]
[1739790906175,4.46314,2749.7,2749.2,3.63741]
[1739790906519,4.46314,2749.7,2749.2,7.27474]
[1739790906724,4.46314,2749.7,2749.3,0.03824897]
[1739790907110,4.46314,2749.7,2749.2,3.63732]
[1739790907621,4.46314,2749.7,2749.3,0.03824897]
[1739790908021,4.46314,2749.7,2749.2,3.63732]
[1739790908622,4.46314,2749.7,2749.3,0.0381789]
[1739790908917,4.46314,2749.7,2749.2,3.63732]
[1739790909126,0.0075,2749.6,2749.4,0.03818591]
[1739790909293,0.0075,2749.5,2748.9,4.46612]
[1739790909475,0.0075,2749.5,2748.6,3.63816]
[1739790909476,3.63724,2749.4,2748.6,3.63816]
[1739790909677,3.63762,2749.1,2748.7,0.86658591]
[1739790911499,3.63759,2749.1,2748.7,0.86658591]
[1739790912430,7.27527,2749.1,2748.7,0.86658591]
[1739790912617,3.63759,2749.1,2748.7,0.86658591]
[1739790913048,0.0075,2749.0,2748.7,0.86658591]
[1739790913334,3.63794,2748.9,2748.7,0.03818591]
[1739790913690,3.63794,2748.9,2748.4,4.42725]
[1739790914022,3.63793,2748.9,2748.8,0.03818591]
[1739790914203,3.63795,2748.8,2748.4,0.7888]
[1739790915343,7.27602,2748.8,2748.4,0.7888]
[1739790915542,3.63813,2748.7,2748.4,0.7888]
[1739790915705,0.7636,2748.9,2748.2,0.8]
[1739790915905,0.7636,2749.4,2748.6,0.8]
[1739790916107,0.7636,2749.4,2748.3,0.03638459]
[1739790916108,0.7636,2748.9,2748.3,0.8]
[1739790916332,3.63801,2748.8,2748.3,0.8]
[1739790916641,3.63801,2748.8,2748.3,8.07714]
[1739790916843,3.63801,2748.8,2748.3,5.546244]
[1739790916993,3.63809,2748.7,2748.3,5.546244]
[1739790917305,3.63834,2748.5,2748.1,0.8065]
[1739790917507,3.63799,2748.8,2748.1,4.44537]
[1739790917840,3.63799,2748.8,2748.2,3.63866]
[1739790918148,3.63799,2748.8,2748.3,3.63858]
[1739790918292,3.63799,2748.8,2748.3,4.083088]
[1739790918940,3.63813,2748.7,2748.3,0.444508]
[1739790919245,3.63813,2748.7,2748.3,4.083108]
[1739790919590,0.7636,2748.9,2748.3,4.083108]
[1739790919834,4.43632,2749.4,2748.7,3.638]
[1739790920034,3.404039,2749.8,2749.2,3.63739]
[1739790920035,0.7991,2749.7,2749.2,3.63739]
[1739790920274,8.538,2750.0,2749.0,3.63766]
[1739790920275,0.7991,2749.9,2749.0,0.7503]
[1739790920477,3.63704,2749.5,2749.0,4.38791]
[1739790920684,3.63704,2749.5,2749.1,0.03910383]
[1739790921065,3.63716,2749.4,2749.1,0.03910383]
[1739790921232,3.64492,2749.2,2749.1,0.03910383]
[1739790921443,3.63776,2749.0,2748.7,0.772]
[1739790921772,3.63799,2748.8,2748.1,0.7924]
[1739790921951,3.63828,2748.6,2748.1,0.7924]
[1739790922775,3.63849,2748.4,2748.1,0.7924]
[1739790924519,3.63828,2748.6,2748.1,0.7924]
[1739790924729,7.27661,2748.6,2748.1,0.7924]
[1739790924881,3.63835,2748.5,2748.1,0.7924]
[1739790925277,3.64558,2748.8,2748.1,0.7924]
[1739790925528,3.6383,2748.6,2748.1,0.7924]
[1739790925688,3.63836,2748.5,2748.1,0.7924]
[1739790926320,7.27661,2748.6,2748.1,0.7924]
[1739790926623,3.64553,2748.8,2748.2,3.63865]
[1739790927120,3.64553,2748.8,2748.2,7.27732]
[1739790927421,3.64552,2748.8,2748.2,3.63865]
[1739790928276,3.63808,2748.7,2748.2,3.63865]
[1739790928677,3.64552,2748.8,2748.3,3.6386]
[1739790929180,3.64552,2748.8,2748.2,3.6387]
[1739790929527,0.7641,2749.1,2748.6,3.63819]
[1739790929688,0.7641,2749.7,2748.9,3.63781]
[1739790929889,3.63677,2749.7,2749.2,0.8128]
[1739790930294,3.63657,2749.9,2749.2,0.8128]
[1739790930473,3.63657,2749.9,2749.3,3.63718]
[1739790930689,0.0075,2749.8,2749.4,3.63713]
[1739790930889,3.63678,2749.7,2749.2,0.8128]
[1739790931121,3.63678,2749.7,2749.2,4.45018]
[1739790931331,8.538,2750.0,2749.3,3.63728]
[1739790931529,8.538,2750.0,2749.5,3.63694]
[1739790931714,8.538,2750.0,2749.6,4.38691]
[1739790931911,0.364,2750.0,2749.7,3.63662]
[1739790932608,0.364,2750.0,2749.6,0.7501]
[1739790932812,0.364,2750.0,2749.6,4.3869]
[1739790933184,0.364,2750.0,2749.7,3.6367]
[1739790934586,0.364,2750.0,2749.8,3.63662]
[1739790934778,0.364,2750.0,2749.9,3.63649]
[1739790935622,0.364,2750.0,2749.9,3.73333765]
[1739790936023,0.364,2750.0,2749.9,0.09684765]
[1739790936527,0.364,2750.0,2749.9,3.73333765]
[1739790937783,0.364,2750.0,2749.9,0.09684765]
[1739790938098,0.364,2750.0,2749.9,0.09679863]
[1739790938316,0.364,2750.0,2749.9,4.95399206]
[1739790939895,0.364,2750.0,2749.9,1.31750206]
[1739790940094,0.364,2750.0,2749.9,4.55808863]
[1739790940443,0.364,2750.0,2749.9,0.92159863]
[1739790940583,0.364,2750.0,2749.9,4.55808863]
[1739790941231,0.364,2750.0,2749.9,0.92159863]
[1739790941399,0.364,2750.0,2749.9,4.55808863]
[1739790941942,0.364,2750.0,2749.9,5.37755249]
[1739790942622,4.00786,2750.0,2749.9,0.09679863]
[1739790942806,13.11486,2750.0,2749.9,0.09679863]
[1739790943009,3.64403,2749.9,2749.3,4.4698]
[1739790943330,0.0075,2749.9,2749.5,3.637]
[1739790943535,0.364,2750.0,2749.5,3.63693]
[1739790943731,0.364,2750.0,2749.6,0.0926878]
[1739790944025,4.00038,2750.0,2749.6,0.0926878]
[1739790944392,3.6365,2749.9,2749.6,0.0926878]
[1739790944740,3.64419,2749.8,2749.7,0.0926878]
[1739790945101,0.0075,2749.9,2749.7,0.09279267]
[1739790945302,3.64399,2749.9,2749.7,0.09279267]
[1739790945520,3.64399,2749.9,2749.8,0.09279267]
[1739790946017,3.63697,2749.6,2749.0,0.7977]
[1739790946335,3.63692,2749.6,2749.1,3.63754]
[1739790946542,3.63702,2749.5,2749.0,0.7977]
[1739790946690,3.63719,2749.4,2749.0,0.7977]
[1739790947341,3.63719,2749.4,2748.9,3.63769]
[1739790948491,3.6373,2749.3,2748.8,3.63794]
[1739790948694,0.7711,2749.3,2748.8,3.63794]
[1739790948999,0.7711,2749.3,2748.9,3.63778]
[1739790949960,0.0075,2749.5,2749.0,3.63767]
[1739790949961,0.7632,2749.5,2749.0,3.63767]
[1739790950594,0.7632,2749.5,2749.1,0.09307236]
[1739790952496,3.6369,2749.6,2749.4,0.09305837]
[1739790952998,3.6369,2749.6,2749.0,3.6376]
[1739790952999,3.63702,2749.5,2749.0,3.6376]
[1739790953199,3.63716,2749.4,2748.9,4.46593]
[1739790953888,4.41846,2749.4,2748.9,4.46593]
[1739790954142,0.7813,2749.4,2749.0,3.63761]
[1739790954438,0.7813,2749.4,2748.9,0.8282]
[1739790954607,0.7813,2749.4,2749.0,3.63766]
[1739790954794,4.4185,2749.4,2748.9,0.8282]
[1739790954997,0.7813,2749.4,2748.9,4.46601]
[1739790955932,0.7813,2749.4,2749.0,3.63767]
[1739790956141,0.7813,2749.4,2749.1,3.63753]
[1739790956638,7.2812,2749.7,2749.1,3.63753]
[1739790956841,0.7682,2749.6,2748.9,1.76386977]
[1739790957012,0.7682,2749.6,2749.2,3.63738]
[1739790957337,3.63702,2749.5,2749.0,3.63759]
[1739790958020,0.0075,2749.5,2749.0,3.63759]
[1739790958340,0.0075,2749.5,2749.2,3.63736]
[1739790958522,0.0075,2749.5,2749.1,3.63745]
[1739790958690,3.64461,2749.5,2749.0,3.63763]
[1739790959097,3.64461,2749.5,2748.9,5.40154977]
[1739790959401,3.63719,2749.4,2748.9,5.40154977]
[1739790959616,3.64461,2749.5,2749.0,3.63767]
[1739790960547,0.0075,2749.5,2749.1,3.63752]